fUST/lending_fUST_20260218
["ID","MTS","AMOUNT","RATE_DAILY","PERIOD"]
[405831575,1771347044169,-179.183809,0.00024658,2]
[405831577,1771347044179,-179.183809,0.00024658,2]
[405831579,1771347044189,-179.183809,0.00024658,2]
[405831581,1771347044200,-179.183809,0.00024658,2]
[405831583,1771347044210,-179.183809,0.00024658,2]
[405831585,1771347044222,-91.89744506,0.00024658,2]
[405831782,1771347046534,-87.28636394,0.00024658,2]
[405831784,1771347046544,-179.183809,0.00024658,2]
[405831786,1771347046554,-36.51964568,0.00024658,2]
[405831788,1771347046569,-142.66416332,0.00024658,2]
[405831790,1771347046579,-179.183809,0.00024658,2]
[405831792,1771347046589,-179.183812,0.00024658,2]
[405831794,1771347046599,-156.224606,0.00024658,2]
[405831796,1771347046608,-671.701208,0.00024658,2]
[405831798,1771347046618,-671.701208,0.00024658,2]
[405831800,1771347046627,-671.701208,0.00024658,2]
[405831802,1771347046637,-671.701208,0.00024658,2]
[405831804,1771347046647,-671.701208,0.00024658,2]
[405831806,1771347046658,-671.701208,0.00024658,2]
[405831808,1771347046668,-671.701208,0.00024658,2]
[405831810,1771347046678,-671.701208,0.00024658,2]
[405831812,1771347046688,-671.701208,0.00024658,2]
[405831814,1771347046698,-671.701208,0.00024658,2]
[405831816,1771347046707,-671.701208,0.00024658,2]
[405831818,1771347046717,-671.701208,0.00024658,2]
[405831820,1771347046727,-671.701208,0.00024658,2]
[405831822,1771347046737,-671.701208,0.00024658,2]
[405831824,1771347046750,-671.701208,0.00024658,2]
[405831826,1771347046760,-671.701208,0.00024658,2]
[405831828,1771347046771,-671.701208,0.00024658,2]
[405831830,1771347046782,-671.701208,0.00024658,2]
[405831832,1771347046792,-671.701208,0.00024658,2]
[405831834,1771347046803,-671.701207,0.00024658,2]
[405831836,1771347046813,-151.0,0.00024658,2]
[405831838,1771347046827,-151.0,0.00024658,2]
[405831840,1771347046837,-173.306111,0.00024658,2]
[405831842,1771347046848,-294.368437,0.00024658,2]
[405831844,1771347046858,-294.368437,0.00024658,2]
[405831846,1771347046868,-294.368437,0.00024658,2]
[405831848,1771347046879,-294.368437,0.00024658,2]
[405831850,1771347046890,-294.368437,0.00024658,2]
[405831852,1771347046900,-294.368437,0.00024658,2]
[405831854,1771347046910,-294.368437,0.00024658,2]
[405831856,1771347046920,-294.368437,0.00024658,2]
[405831858,1771347046930,-294.368437,0.00024658,2]
[405831860,1771347046940,-294.368437,0.00024658,2]
[405831862,1771347046951,-151.0,0.00024658,2]
[405831864,1771347046962,-294.368437,0.00024658,2]
[405831866,1771347046974,-151.0,0.00024658,2]
[405831868,1771347046984,-294.368437,0.00024658,2]
[405831870,1771347046995,-151.0,0.00024658,2]
[405831872,1771347047005,-151.0,0.00024658,2]
[405831874,1771347047015,-294.368437,0.00024658,2]
[405831876,1771347047026,-167.804146,0.00024658,2]
[405831878,1771347047036,-294.368437,0.00024658,2]
[405831880,1771347047046,-294.368437,0.00024658,2]
[405831882,1771347047057,-294.368437,0.00024658,2]
[405831884,1771347047069,-294.368437,0.00024658,2]
[405831886,1771347047080,-294.368437,0.00024658,2]
[405831888,1771347047090,-294.368437,0.00024658,2]
[405831890,1771347047100,-294.368429,0.00024658,2]
[405831892,1771347047111,-151.0,0.00024658,2]
[405831894,1771347047121,-186.151094,0.00024658,2]
[405831896,1771347047132,-151.0,0.00024658,2]
[405831898,1771347047143,-262.305572,0.00024658,2]
[405831900,1771347047154,-151.0,0.00024658,2]
[405831903,1771347047166,-188.307344,0.00024658,2]
[405831905,1771347047177,-151.0,0.00024658,2]
[405831906,1771347047189,-203.427774,0.00024658,2]
[405831909,1771347047200,-181.152574,0.00024658,2]
[405831910,1771347047211,-151.0,0.00024658,2]
[405831912,1771347047223,-151.0,0.00024658,2]
[405831921,1771347047344,-151.0,0.00024658,2]
[405831922,1771347047356,-208.138038,0.00024658,2]
[405831923,1771347047369,-151.0,0.00024658,2]
[405831924,1771347047380,-151.0,0.00024658,2]
[405831925,1771347047391,-151.0,0.00024658,2]
[405831927,1771347047402,-151.0,0.00024658,2]
[405831929,1771347047412,-151.0,0.00024658,2]
[405831931,1771347047423,-151.0,0.00024658,2]
[405831933,1771347047433,-196.136254,0.00024658,2]
[405831935,1771347047444,-151.0,0.00024658,2]
[405831937,1771347047454,-151.0,0.00024658,2]
[405831939,1771347047464,-151.0,0.00024658,2]
[405831941,1771347047474,-151.0,0.00024658,2]
[405831943,1771347047484,-151.0,0.00024658,2]
[405831945,1771347047495,-151.0,0.00024658,2]
[405831947,1771347047504,-151.0,0.00024658,2]
[405831949,1771347047514,-151.0,0.00024658,2]
[405831951,1771347047525,-151.0,0.00024658,2]
[405831953,1771347047535,-164.103236,0.00024658,2]
[405831955,1771347047545,-151.0,0.00024658,2]
[405831957,1771347047555,-248.381813,0.00024658,2]
[405831959,1771347047569,-274.271151,0.00024658,2]
[405831961,1771347047579,-151.0,0.00024658,2]
[405831963,1771347047589,-151.0,0.00024658,2]
[405831965,1771347047599,-151.0,0.00024658,2]
[405831967,1771347047609,-151.0,0.00024658,2]
[405831969,1771347047620,-151.0,0.00024658,2]
[405831971,1771347047630,-225.127064,0.00024658,2]
[405831973,1771347047641,-151.0,0.00024658,2]
[405831975,1771347047651,-151.0,0.00024658,2]
[405831977,1771347047661,-294.709748,0.00024658,2]
[405831979,1771347047671,-151.0,0.00024658,2]
[405831981,1771347047682,-151.0,0.00024658,2]
[405831983,1771347047692,-151.0,0.00024658,2]
[405831985,1771347047702,-151.0,0.00024658,2]
[405831987,1771347047712,-249.865523,0.00024658,2]
[405831989,1771347047722,-151.0,0.00024658,2]
[405831991,1771347047731,-209.941108,0.00024658,2]
[405831993,1771347047746,-169.880597,0.00024658,2]
[405831995,1771347047756,-169.880597,0.00024658,2]
[405831997,1771347047766,-169.880597,0.00024658,2]
[405831999,1771347047776,-169.880597,0.00024658,2]
[405832001,1771347047787,-169.880597,0.00024658,2]
[405832003,1771347047797,-169.880597,0.00024658,2]
[405832006,1771347047809,-169.880597,0.00024658,2]
[405832008,1771347047820,-169.880597,0.00024658,2]
[405832010,1771347047830,-169.880597,0.00024658,2]
[405832012,1771347047840,-169.880597,0.00024658,2]
[405832014,1771347047851,-169.880597,0.00024658,2]
[405832016,1771347047861,-169.880597,0.00024658,2]
[405832018,1771347047871,-169.880597,0.00024658,2]
[405832020,1771347047882,-169.880597,0.00024658,2]
[405832022,1771347047892,-169.880597,0.00024658,2]
[405832024,1771347047902,-193.629075,0.00024658,2]
[405832026,1771347047912,-169.880597,0.00024658,2]
[405832028,1771347047922,-169.880597,0.00024658,2]
[405832030,1771347047933,-169.880597,0.00024658,2]
[405832032,1771347047944,-169.880597,0.00024658,2]
[405832034,1771347047955,-169.880601,0.00024658,2]
[405832036,1771347047965,-155.846806,0.00024658,2]
[405832038,1771347047976,-155.846806,0.00024658,2]
[405832040,1771347047987,-155.846806,0.00024658,2]
[405832042,1771347047998,-155.846806,0.00024658,2]
[405832044,1771347048008,-155.846806,0.00024658,2]
[405832046,1771347048018,-155.846806,0.00024658,2]
[405832048,1771347048028,-155.846806,0.00024658,2]
[405832050,1771347048038,-155.846806,0.00024658,2]
[405832052,1771347048049,-155.846806,0.00024658,2]
[405832054,1771347048059,-155.846806,0.00024658,2]
[405832056,1771347048069,-155.846806,0.00024658,2]
[405832058,1771347048079,-155.846806,0.00024658,2]
[405832060,1771347048090,-155.846806,0.00024658,2]
[405832062,1771347048100,-155.846806,0.00024658,2]
[405832064,1771347048110,-155.846806,0.00024658,2]
[405832066,1771347048120,-155.846806,0.00024658,2]
[405832068,1771347048130,-155.846806,0.00024658,2]
[405832070,1771347048141,-155.846806,0.00024658,2]
[405832072,1771347048152,-155.846806,0.00024658,2]
[405832074,1771347048163,-155.846802,0.00024658,2]
[405832076,1771347048173,-151.0,0.00024658,2]
[405832078,1771347048184,-151.0,0.00024658,2]
[405832080,1771347048194,-151.0,0.00024658,2]
[405832082,1771347048205,-151.0,0.00024658,2]
[405832084,1771347048215,-151.0,0.00024658,2]
[405832086,1771347048225,-205.156157,0.00024658,2]
[405832088,1771347048235,-151.0,0.00024658,2]
[405832090,1771347048246,-151.0,0.00024658,2]
[405832092,1771347048256,-181.674385,0.00024658,2]
[405832094,1771347048267,-202.640159,0.00024658,2]
[405832096,1771347048279,-150.0,0.00024666,2]
[405832098,1771347048291,-150.0,0.00024666,2]
[405832100,1771347048302,-194.9143938,0.00024666,2]
[405832102,1771347048312,-265.87711598,0.00024666,2]
[405832104,1771347048323,-168.0,0.00024672,2]
[405832106,1771347048333,-424.0,0.000247,2]
[405832108,1771347048345,-150.0,0.00024721,2]
[405832110,1771347048356,-189.89601547,0.00024721,2]
[405832112,1771347048366,-168.0,0.00024764,2]
[405832114,1771347048376,-168.0,0.00024772,2]
[405832116,1771347048387,-150.0,0.00024776,2]
[405832118,1771347048398,-2172.0,0.00024799,2]
[405832120,1771347048408,-1381.0,0.00024799,2]
[405832122,1771347048419,-635.0,0.00024799,2]
[405832124,1771347048430,-2500.0,0.000248,4]
[405832126,1771347048442,-12495.75926877,0.00024806,2]
[405832128,1771347048453,-150.0,0.0002483,2]
[405832130,1771347048464,-424.0,0.00024883,2]
[405832132,1771347048474,-424.0,0.00024884,2]
[405832134,1771347048485,-150.0,0.00024885,2]
[405832136,1771347048497,-500.0,0.000249,9]
[405832138,1771347048507,-500.0,0.000249,9]
[405832140,1771347048519,-32831.9816628,0.000249,2]
[405832144,1771347048544,-202.640159,0.00024658,2]
[405832146,1771347048555,-340.0,0.00024658,10]
[405832148,1771347048566,-431.16812002,0.000249,2]
[405832747,1771347437016,770.4,0.00013,2]
[405832748,1771347622872,220.12,0.00013957,4]
[405832750,1771347733976,663.37093315,0.00013001,2]
[405832751,1771347939167,-500.0,0.0001314,2]
[405832752,1771347939186,-391.79785635,0.0001314,2]
[405832754,1771348045077,-18.04675277,0.0001314,2]
[405832755,1771348045099,-150.0,0.00013173,2]
[405832756,1771348045117,-500.0,0.00013273,2]
[405832757,1771348045137,-1000.0,0.00013821,2]
[405832758,1771348045156,-72.9326204,0.00014368,2]
[405832799,1771348232256,-500.0,0.00013273,2]
[405832801,1771348232266,-741.38948878,0.00013821,2]
[405832829,1771348238375,-258.61051122,0.00013821,2]
[405832832,1771348238386,-1500.0,0.00014368,2]
[405832833,1771348238396,-300.0,0.00014914,2]
[405832835,1771348238406,-1200.0,0.00014914,2]
[405832837,1771348238416,-395.45295568,0.00014914,2]
[405832839,1771348238426,-300.0,0.00014915,2]
[405832843,1771348238436,-1427.0673796,0.00014916,2]
[405832845,1771348238446,-177.0,0.00015173,2]
[405832848,1771348238455,-197.85314018,0.000163,2]
[405832851,1771348238465,-420.0,0.00016324,2]
[405832854,1771348238474,-204.0,0.00017173,2]
[405832857,1771348238484,-587.0,0.00017868,2]
[405832859,1771348238493,-255.0,0.00018222,5]
[405832862,1771348238504,-4016.32124488,0.00018399,2]
[405832864,1771348238513,-231.0,0.00019173,2]
[405832866,1771348238523,-823.0,0.00019557,2]
[405832868,1771348238537,-366.55356254,0.00020933,2]
[405832870,1771348238547,-258.0,0.00021173,2]
[405832872,1771348238557,-25062.98181,0.00021254,2]
[405832874,1771348238567,-1152.0,0.00021406,2]
[405832876,1771348238577,-264.97,0.000216,2]
[405832878,1771348238587,-500.0,0.00021618,2]
[405832880,1771348238597,-216.54687368,0.00021618,2]
[405833036,1771348240751,-870.70092158,0.000165,2]
[405833037,1771348240762,-17869.29907842,0.000165,2]
[405833038,1771348240772,-141.43605416,0.00021618,2]
[405833039,1771348240784,-500.0,0.00021618,2]
[405833040,1771348240793,-210.2284181,0.00021618,2]
[405833041,1771348240802,-1227.09,0.00021618,2]
[405833042,1771348240811,-500.0,0.00021618,2]
[405833043,1771348240822,-506.5,0.00021618,10]
[405833044,1771348240831,-500.0,0.00021892,2]
[405833045,1771348240840,-1227.09,0.00021892,2]
[405833046,1771348240849,-500.0,0.00021892,2]
[405833047,1771348240858,-4016.32124488,0.00021982,2]
[405833048,1771348240867,-170.0,0.00022,2]
[405833049,1771348240876,-500.0,0.00022166,2]
[405833050,1771348240885,-1227.09,0.00022166,2]
[405833051,1771348240894,-500.0,0.00022166,2]
[405833052,1771348240903,-280.45654969,0.00022177,2]
[405833053,1771348240912,-20000.0,0.00022231,2]
[405833054,1771348240921,-426.0,0.00022411,2]
[405833055,1771348240931,-181.001,0.00022411,2]
[405833056,1771348240940,-258.2,0.0002244,2]
[405833057,1771348240949,-1227.09,0.0002244,2]
[405833058,1771348240958,-500.0,0.0002244,2]
[405833059,1771348240967,-635.0,0.00022647,2]
[405833060,1771348240975,-2172.0,0.00022647,2]
[405833061,1771348240985,-1381.0,0.00022647,2]
[405833062,1771348240994,-1227.09,0.00022714,2]
[405833063,1771348241003,-299.15,0.00022714,2]
[405833064,1771348241013,-1227.09,0.00022988,2]
[405833065,1771348241022,-575.48494242,0.00023014,7]
[405833066,1771348241034,-561.34030257,0.00023014,7]
[405833067,1771348241043,-168.06448003,0.00023119,5]
[405833068,1771348241053,-211.45216165,0.00023119,5]
[405833069,1771348241062,-157.67299515,0.00023119,5]
[405833070,1771348241072,-285.0,0.00023173,2]
[405833071,1771348241081,-1227.09,0.00023262,2]
[405833072,1771348241093,-743.45912368,0.00023289,2]
[405833074,1771348241103,-879.0,0.0002343,2]
[405833076,1771348241112,-1227.09,0.00023536,2]
[405833078,1771348241122,-1000.0,0.00023671,30]
[405833080,1771348241131,-1227.09,0.0002381,2]
[405833082,1771348241141,-168.06448002,0.00023834,5]
[405833084,1771348241151,-157.67299514,0.00023834,5]
[405833086,1771348241162,-446.51371365,0.00023864,7]
[405833088,1771348241171,-169.968,0.0002394,5]
[405833090,1771348241180,-62248.05710662,0.0002399,2]
[405833092,1771348241190,-1227.09,0.00024084,2]
[405833094,1771348241199,-1227.09,0.00024358,2]
[405833096,1771348241208,-447.42,0.0002441,2]
[405833098,1771348241217,-1014.58887814,0.0002448,2]
[405833100,1771348241227,-388.0,0.000246,2]
[405833102,1771348241236,-250.0,0.00024611,2]
[405833104,1771348241245,-1227.09,0.00024632,2]
[405833106,1771348241255,-150.0,0.00024658,2]
[405833108,1771348241264,-536.7992462,0.00024845,2]
[405833125,1771348241409,-495.06,0.000249,14]
[405833127,1771348241419,-248.397024,0.000249,2]
[405833129,1771348241429,-248.397024,0.000249,2]
[405833131,1771348241438,-248.397024,0.000249,2]
[405833133,1771348241447,-248.397024,0.000249,2]
[405833135,1771348241456,-155.94208,0.000249,2]
[405833137,1771348241465,-155.94208,0.000249,2]
[405833139,1771348241474,-155.94208,0.000249,2]
[405833141,1771348241483,-155.94208,0.000249,2]
[405833143,1771348241493,-1585.091801,0.000249,2]
[405833145,1771348241502,-1585.091801,0.000249,2]
[405833147,1771348241511,-1585.091801,0.000249,2]
[405833149,1771348241520,-1585.091801,0.000249,2]
[405833151,1771348241529,-3785.996115,0.000249,2]
[405833152,1771348241541,-3785.996115,0.000249,2]
[405833154,1771348241550,-3785.996115,0.000249,2]
[405833156,1771348241559,-3785.996115,0.000249,2]
[405833158,1771348241568,-123009.724684,0.000249,2]
[405833160,1771348241577,-151.0,0.000249,2]
[405833162,1771348241587,-151.0,0.000249,2]
[405833164,1771348241597,-151.000024,0.000249,2]
[405833166,1771348241606,-151.0,0.000249,2]
[405833169,1771348241615,-151.0,0.000249,2]
[405833171,1771348241625,-1227.09,0.00024906,2]
[405833172,1771348241634,-168.0,0.0002495,2]
[405833174,1771348241643,-424.0,0.00024966,2]
[405833177,1771348241652,-61504.8623419,0.0002497,2]
[405833179,1771348241661,-151.0,0.0002497,2]
[405833181,1771348241670,-196.521048,0.0002497,2]
[405833183,1771348241679,-151.0,0.0002497,2]
[405833185,1771348241688,-151.0,0.0002497,2]
[405833187,1771348241697,-2000.0,0.0002498,2]
[405833189,1771348241706,-158.855961,0.0002498,2]
[405833191,1771348241714,-248.397024,0.0002498,2]
[405833193,1771348241723,-248.397024,0.0002498,2]
[405833194,1771348241732,-248.397024,0.0002498,2]
[405833196,1771348241741,-248.397024,0.0002498,2]
[405833198,1771348241750,-155.94208,0.0002498,2]
[405833200,1771348241759,-155.94208,0.0002498,2]
[405833202,1771348241768,-155.94208,0.0002498,2]
[405833204,1771348241777,-155.94208,0.0002498,2]
[405833206,1771348241790,-1585.091801,0.0002498,2]
[405833208,1771348241801,-1585.091801,0.0002498,2]
[405833210,1771348241810,-1585.091801,0.0002498,2]
[405833212,1771348241820,-1585.091801,0.0002498,2]
[405833214,1771348241829,-3785.996115,0.0002498,2]
[405833216,1771348241838,-3785.996115,0.0002498,2]
[405833219,1771348241848,-3785.996115,0.0002498,2]
[405833221,1771348241857,-3785.996115,0.0002498,2]
[405833222,1771348241867,-151.0,0.0002498,2]
[405833224,1771348241876,-223.467198,0.0002498,2]
[405833226,1771348241885,-193.041415,0.0002498,2]
[405833228,1771348241906,-193.041415,0.0002498,2]
[405833230,1771348241917,-180.499377,0.0002498,2]
[405833232,1771348241926,-193.041415,0.0002498,2]
[405833234,1771348241935,-193.041415,0.0002498,2]
[405833236,1771348241944,-151.0,0.0002498,2]
[405833238,1771348241953,-151.0,0.0002498,2]
[405833240,1771348241962,-151.0,0.0002498,2]
[405833242,1771348241972,-176.538876,0.0002498,2]
[405833244,1771348241990,-61504.8623419,0.0002498,2]
[405833247,1771348242000,-424.0,0.00024981,2]
[405833248,1771348242009,-248.397024,0.0002499,2]
[405833250,1771348242018,-248.397024,0.0002499,2]
[405833253,1771348242027,-248.397024,0.0002499,2]
[405833255,1771348242040,-248.397024,0.0002499,2]
[405833257,1771348242049,-155.94208,0.0002499,2]
[405833258,1771348242058,-155.94208,0.0002499,2]
[405833261,1771348242071,-155.94208,0.0002499,2]
[405833263,1771348242081,-155.94208,0.0002499,2]
[405833265,1771348242090,-1585.091801,0.0002499,2]
[405833267,1771348242099,-1585.091801,0.0002499,2]
[405833269,1771348242109,-1585.091801,0.0002499,2]
[405833271,1771348242118,-1585.091801,0.0002499,2]
[405833273,1771348242127,-3785.996115,0.0002499,2]
[405833275,1771348242136,-3785.996115,0.0002499,2]
[405833277,1771348242148,-3785.996115,0.0002499,2]
[405833279,1771348242156,-3785.996115,0.0002499,2]
[405833281,1771348242165,-86162.12296792,0.0002499,2]
[405833290,1771348242243,-101407.0,0.0002499,2]
[405833698,1771348246276,-4556.61287652,0.0002499,2]
[405834430,1771349136136,-150.0,0.00016388,2]
[405834431,1771349136159,-121.27460398,0.00016438,2]
[405834432,1771349232084,-182.60893924,0.00016438,2]
[405834433,1771349235075,-374.76106076,0.00016438,2]
[405834434,1771349235095,-1568.9998325,0.0001645,2]
[405834437,1771349373826,146110.37,0.00013,2]
[405834470,1771349432340,-364.31759627,0.00015,2]
[405834472,1771349432351,-408.27942016,0.00015,2]
[405834474,1771349432360,-265.13057984,0.00016361,2]
[405834476,1771349432371,-2747.11035388,0.00016361,2]
[405834478,1771349432380,-150.0,0.00016444,2]
[405834479,1771349432390,-151.0,0.00016461,5]
[405834481,1771349432399,-232.3546624,0.0001655,2]
[405834483,1771349432409,-193.0,0.00017852,2]
[405834485,1771349432423,-300.0,0.00017852,2]
[405834487,1771349432433,-1200.0,0.00017852,2]
[405834489,1771349432442,-1326.2233219,0.00017854,2]
[405834513,1771349438490,-500.0,0.00017852,2]
[405834514,1771349438500,-500.0,0.00017852,2]
[405834515,1771349438509,-178.27261966,0.00017852,2]
[405834516,1771349438544,-321.72738034,0.00017852,2]
[405834517,1771349438553,-500.0,0.00017852,2]
[405834518,1771349438563,-500.0,0.00017852,2]
[405834519,1771349438572,-500.0,0.00017852,2]
[405834520,1771349438581,-500.0,0.00017852,2]
[405834521,1771349438591,-452.70579421,0.00017852,2]
[405834559,1771349440755,-47.29420579,0.00017852,2]
[405834561,1771349440764,-350.71131712,0.00017852,2]
[405834563,1771349440775,-149.28868288,0.00017852,2]
[405834565,1771349440786,-387.13178198,0.00017852,2]
[405834567,1771349440795,-500.0,0.00017852,2]
[405834569,1771349440804,-163.51867516,0.00017852,2]
[405834571,1771349440813,-257.37665962,0.00017852,2]
[405834573,1771349440822,-500.0,0.00017852,2]
[405834575,1771349440831,-500.0,0.00017852,2]
[405834577,1771349440840,-500.0,0.00017852,2]
[405834579,1771349440849,-500.0,0.00017852,2]
[405834581,1771349440858,-500.0,0.00017852,2]
[405834583,1771349440867,-500.0,0.00017852,2]
[405834585,1771349440876,-338.69918777,0.00017852,2]
[405834586,1771349440886,-500.0,0.00017852,2]
[405834588,1771349440896,-500.0,0.00017852,2]
[405834590,1771349440905,-500.0,0.00017852,2]
[405834592,1771349440914,-500.0,0.00017852,2]
[405834594,1771349440923,-500.0,0.00017852,2]
[405834596,1771349440932,-500.0,0.00017852,2]
[405834598,1771349440942,-500.0,0.00017852,2]
[405834600,1771349440951,-500.0,0.00017852,2]
[405834602,1771349440960,-500.0,0.00017852,2]
[405834604,1771349440969,-500.0,0.00017852,2]
[405834606,1771349440978,-500.0,0.00017852,2]
[405834608,1771349440987,-500.0,0.00017852,2]
[405834610,1771349440996,-500.0,0.00017852,2]
[405834612,1771349441005,-500.0,0.00017852,2]
[405834614,1771349441014,-338.40888342,0.00017852,2]
[405834616,1771349441023,-500.0,0.00017852,2]
[405834618,1771349441033,-500.0,0.00017852,2]
[405834620,1771349441042,-500.0,0.00017852,2]
[405834622,1771349441051,-500.0,0.00017852,2]
[405834624,1771349441060,-500.0,0.00017852,2]
[405834626,1771349441069,-525.67161328,0.00017852,2]
[405834628,1771349441078,-500.0,0.00017852,2]
[405834630,1771349441087,-500.0,0.00017852,2]
[405834632,1771349441096,-500.0,0.00017852,2]
[405834634,1771349441106,-500.0,0.00017852,2]
[405834636,1771349441115,-500.0,0.00017852,2]
[405834638,1771349441124,-500.0,0.00017852,2]
[405834640,1771349441132,-500.0,0.00017852,2]
[405834642,1771349441141,-500.0,0.00017852,2]
[405834643,1771349441151,-500.0,0.00017852,2]
[405834645,1771349441160,-500.0,0.00017852,2]
[405834647,1771349441169,-500.0,0.00017852,2]
[405834649,1771349441178,-500.0,0.00017852,2]
[405834651,1771349441187,-500.0,0.00017852,2]
[405834653,1771349441196,-500.0,0.00017852,2]
[405834655,1771349441205,-500.0,0.00017852,2]
[405834657,1771349441215,-500.0,0.00017852,2]
[405834659,1771349441224,-500.0,0.00017852,2]
[405834661,1771349441234,-500.0,0.00017852,2]
[405834663,1771349441243,-500.0,0.00017852,2]
[405834665,1771349441252,-500.0,0.00017852,2]
[405834667,1771349441261,-500.0,0.00017852,2]
[405834669,1771349441272,-500.0,0.00017852,2]
[405834671,1771349441281,-500.0,0.00017852,2]
[405834672,1771349441291,-500.0,0.00017852,2]
[405834673,1771349441300,-500.0,0.00017852,2]
[405834674,1771349441309,-500.0,0.00017852,2]
[405834675,1771349441318,-500.0,0.00017852,2]
[405834676,1771349441326,-500.0,0.00017852,2]
[405834677,1771349441335,-500.0,0.00017852,2]
[405834678,1771349441345,-500.0,0.00017852,2]
[405834679,1771349441354,-500.0,0.00017852,2]
[405834680,1771349441363,-500.0,0.00017852,2]
[405834681,1771349441372,-500.0,0.00017852,2]
[405834682,1771349441381,-500.0,0.00017852,2]
[405834683,1771349441390,-500.0,0.00017852,2]
[405834684,1771349441399,-500.0,0.00017852,2]
[405834685,1771349441408,-441.40451589,0.00017852,2]
[405834911,1771349443748,-102.66820352,0.00017852,2]
[405834912,1771349443757,-500.0,0.00017852,2]
[405834914,1771349443767,-500.0,0.00017852,2]
[405834916,1771349443776,-500.0,0.00017852,2]
[405834918,1771349443785,-500.0,0.00017852,2]
[405834920,1771349443796,-500.0,0.00017852,2]
[405834922,1771349443806,-500.0,0.00017852,2]
[405834924,1771349443815,-500.0,0.00017852,2]
[405834926,1771349443824,-500.0,0.00017852,2]
[405834928,1771349443833,-500.0,0.00017852,2]
[405834930,1771349443842,-500.0,0.00017852,2]
[405834932,1771349443851,-500.0,0.00017852,2]
[405834934,1771349443860,-500.0,0.00017852,2]
[405834936,1771349443869,-500.0,0.00017852,2]
[405834937,1771349443878,-276.81706898,0.00017852,2]
[405834939,1771349443887,-500.0,0.00017852,2]
[405834941,1771349443896,-254.4809916,0.00017852,2]
[405834943,1771349443906,-500.0,0.00017852,2]
[405834945,1771349443914,-2085.61930922,0.00017854,2]
[405834957,1771349444029,-3599.1,0.00017854,2]
[405834960,1771349444042,-1283.82286199,0.00017854,2]
[405834962,1771349444054,-34.41377658,0.00017854,2]
[405834964,1771349444064,-369.08622342,0.00017854,2]
[405834966,1771349444075,-165.05377658,0.00017854,2]
[405834968,1771349444084,-743.45912368,0.00017958,2]
[405834971,1771349444093,-3689.28938469,0.00018,2]
[405835182,1771349446512,-14234.77279827,0.00018,2]
[405836281,1771349838371,155.67884178,0.00012578,2]
[405836335,1771350358135,-501.71719372,0.00013699,2]
[405836336,1771350358154,-150.0,0.00013973,2]
[405836337,1771350358173,-154.0,0.00014521,2]
[405836338,1771350358194,-259.4496159,0.00015041,2]
[405836340,1771350436219,-926.22967628,0.00014891,2]
[405836341,1771350440084,-417.71568856,0.00014891,2]
[405836342,1771350440103,-47.36071116,0.00015068,2]
[405836343,1771350450116,-110.63928884,0.00015068,2]
[405836344,1771350450138,-150.0,0.0001527,2]
[405836345,1771350450157,-134.78142508,0.000155,2]
[405836370,1771350631661,-500.0,0.00013699,2]
[405836372,1771350631671,-151.52834352,0.00014247,2]
[405836374,1771350631680,-45.58857492,0.000155,2]
[405836376,1771350631690,-150.0,0.00015558,2]
[405836378,1771350631699,-224.50156697,0.00015616,2]
[405836380,1771350631708,-1000.0,0.000162,2]